fUST/lending_fUST_20240816
["ID","MTS","AMOUNT","RATE_DAILY","PERIOD"]
[335021636,1723747848832,-500.0,0.00047123,120]
[335021637,1723747848841,-500.0,0.00047123,120]
[335021638,1723747848852,-500.0,0.00047123,120]
[335021639,1723747848864,-500.0,0.00047123,120]
[335021640,1723747848873,-308.1409752,0.00047123,120]
[335021641,1723747848883,-500.0,0.00047123,120]
[335021642,1723747848893,-500.0,0.00047123,120]
[335021643,1723747848902,-500.0,0.00047123,120]
[335021644,1723747848914,-520.56,0.00047123,120]
[335021645,1723747848923,-500.0,0.00047123,120]
[335021646,1723747848933,-500.0,0.00047123,120]
[335021647,1723747848943,-500.0,0.00047123,120]
[335021648,1723747848953,-500.0,0.00047123,120]
[335021649,1723747848962,-500.0,0.00047123,120]
[335021650,1723747848972,-500.0,0.00047123,120]
[335021651,1723747848982,-500.0,0.00047123,120]
[335021652,1723747848991,-500.0,0.00047123,120]
[335021653,1723747849001,-500.0,0.00047123,120]
[335021654,1723747849011,-500.0,0.00047123,120]
[335021655,1723747849021,-500.0,0.00047123,2]
[335021656,1723747849030,-500.0,0.00047123,120]
[335021657,1723747849040,-500.0,0.00047123,120]
[335021658,1723747849050,-567.14,0.00047123,120]
[335021659,1723747849060,-500.0,0.00047123,120]
[335021660,1723747849069,-500.0,0.00047123,120]
[335021661,1723747849080,-500.0,0.00047123,120]
[335021662,1723747849090,-586.58,0.00047123,120]
[335021663,1723747849099,-500.0,0.00047123,120]
[335021664,1723747849121,-939.13,0.00047123,120]
[335021665,1723747849132,-500.0,0.00047123,120]
[335021666,1723747849143,-500.0,0.00047123,120]
[335021667,1723747849153,-500.0,0.00047123,120]
[335021668,1723747849165,-500.0,0.00047123,120]
[335021669,1723747849175,-500.0,0.00047123,120]
[335021670,1723747849185,-527.72,0.00047123,120]
[335021671,1723747849196,-530.18,0.00047123,120]
[335021672,1723747849206,-500.0,0.00047123,120]
[335021673,1723747849216,-500.0,0.00047123,120]
[335021674,1723747849228,-500.0,0.00047123,120]
[335021675,1723747849238,-500.0,0.00047123,120]
[335021676,1723747849248,-321.78110338,0.00047123,120]
[335021696,1723748744155,-309.00538626,0.00030667,7]
[335021697,1723748744175,-158.271091,0.00037333,120]
[335021698,1723748744213,-235.97941963,0.0004,4]
[335021699,1723748744236,-292.21816549,0.00046475,28]
[335021700,1723748744259,-1080.44853452,0.00046565,3]
[335021702,1723748809314,-248.49148178,0.00046565,3]
[335021710,1723748953218,-174.59348,0.00014247,2]
[335021711,1723748953240,-158.271091,0.00038756,120]
[335021712,1723748971006,200.0,0.00014519,2]
[335021750,1723749032583,-150.0,0.00030767,14]
[335021752,1723749032593,-199.539999,0.00030767,14]
[335021753,1723749032603,-174.59348,0.00044932,2]
[335021755,1723749032614,-153.0,0.00046411,2]
[335021757,1723749032624,-126.722521,0.00046411,2]
[335021777,1723749039948,1065.84326677,0.00014519,2]
[335021823,1723749041385,-26.277479,0.00046411,2]
[335021824,1723749041396,-153.0,0.00046411,2]
[335021825,1723749041406,-255.69089483,0.00046475,28]
[335021826,1723749041417,-798.7,0.00046565,3]
[335021827,1723749041427,-1381.38,0.00046565,3]
[335021828,1723749041438,-1151.15,0.00046565,3]
[335021829,1723749041448,-500.0,0.00046575,120]
[335021830,1723749041457,-500.0,0.00046575,120]
[335021831,1723749041468,-500.0,0.00046575,120]
[335021832,1723749041478,-500.0,0.00046575,120]
[335021833,1723749041488,-500.0,0.00046575,120]
[335021834,1723749041501,-500.0,0.00046575,120]
[335021835,1723749041511,-500.0,0.00046575,120]
[335021836,1723749041520,-500.0,0.00046575,120]
[335021837,1723749041530,-500.0,0.00046575,120]
[335021838,1723749041540,-500.0,0.00046575,120]
[335021839,1723749041550,-500.0,0.00046575,120]
[335021840,1723749041559,-500.0,0.00046575,120]
[335021841,1723749041569,-500.0,0.00046575,120]
[335021842,1723749041579,-286.53344006,0.00046575,120]
[335021843,1723749041588,-500.0,0.00046575,120]
[335021844,1723749041597,-500.0,0.00046575,120]
[335021845,1723749041607,-156.64318551,0.00046575,120]
[335021846,1723749041619,-343.35681449,0.00046575,120]
[335021847,1723749041628,-500.0,0.00046575,120]
[335021848,1723749041638,-500.0,0.00046575,7]
[335021849,1723749041647,-500.0,0.00046575,120]
[335021850,1723749041657,-500.0,0.00046575,120]
[335021851,1723749041666,-500.0,0.00046575,120]
[335021852,1723749041676,-500.0,0.00046575,120]
[335021853,1723749041685,-500.0,0.00046575,120]
[335021854,1723749041694,-500.0,0.00046575,120]
[335021855,1723749041704,-500.0,0.00046575,120]
[335021856,1723749041714,-500.0,0.00046575,120]
[335021857,1723749041724,-232.73318551,0.00046575,120]
[335021858,1723749041736,-267.26681449,0.00046575,120]
[335021859,1723749041749,-26.08879513,0.00046575,120]
[335021860,1723749041760,-404.01179138,0.00046575,120]
[335021864,1723749043665,-504.19548185,0.00046565,3]
[335021900,1723749047771,-455.09451815,0.00046565,3]
[335021901,1723749047781,-69.89941349,0.00046575,120]
[335021902,1723749047791,-500.0,0.00046575,120]
[335021903,1723749047802,-500.0,0.00046575,120]
[335021904,1723749047812,-500.0,0.00046575,120]
[335021905,1723749047821,-500.0,0.00046575,120]
[335021906,1723749047831,-500.0,0.00046575,120]
[335021907,1723749047841,-500.0,0.00046575,120]
[335021908,1723749047851,-500.0,0.00046575,120]
[335021909,1723749047861,-500.0,0.00046575,120]
[335021910,1723749047871,-500.0,0.00046575,120]
[335021911,1723749047881,-537.09112232,0.00046575,120]
[335021912,1723749047890,-183.31613863,0.00046575,120]
[335021913,1723749047900,-500.0,0.00046575,120]
[335021914,1723749047910,-559.37,0.00046575,120]
[335021915,1723749047920,-500.0,0.00046575,120]
[335021916,1723749047930,-500.0,0.00046575,120]
[335021917,1723749047942,-500.0,0.00046575,120]
[335021918,1723749047954,-500.0,0.00046575,120]
[335021919,1723749047966,-500.0,0.00046575,120]
[335021920,1723749047975,-900.11,0.00046575,7]
[335021921,1723749047985,-500.0,0.00046575,120]
[335021922,1723749047994,-500.0,0.00046575,120]
[335021923,1723749048010,-500.0,0.00046575,120]
[335021924,1723749048021,-500.0,0.00046575,120]
[335021925,1723749048031,-866.99,0.00046575,120]
[335021926,1723749048042,-500.0,0.00046575,120]
[335021927,1723749048052,-500.0,0.00046575,120]
[335021928,1723749048064,-500.0,0.00046575,120]
[335021929,1723749048075,-672.2,0.00046575,120]
[335021930,1723749048086,-500.0,0.00046575,120]
[335021931,1723749048096,-500.0,0.00046575,120]
[335021932,1723749048106,-200.0,0.00046575,7]
[335021933,1723749048119,-503.62100844,0.00046575,120]
[335021934,1723749048129,-500.0,0.00046575,120]
[335021935,1723749048139,-500.0,0.00046575,120]
[335021936,1723749048149,-500.0,0.00046575,120]
[335021937,1723749048159,-619.30125694,0.00046575,120]
[335021938,1723749048169,-500.0,0.00046575,120]
[335021939,1723749048179,-500.0,0.00046575,120]
[335021940,1723749048189,-500.0,0.00046575,120]
[335021941,1723749048200,-405.5421487,0.00046575,120]
[335021942,1723749048210,-500.0,0.00046575,120]
[335021943,1723749048219,-500.0,0.00046575,120]
[335021944,1723749048229,-500.0,0.00046575,120]
[335021945,1723749048238,-3.46412775,0.00046575,120]
[335021946,1723749048254,-496.53587225,0.00046575,120]
[335021947,1723749048264,-77.46412775,0.00046575,120]
[335021956,1723749066443,200.0,0.00017598,2]
[335021957,1723749095262,190.69723079,0.0004,2]
[335021981,1723749935158,-174.59348,0.00014247,2]
[335021982,1723749935182,-32.99877969,0.0003837,2]
[335022009,1723750160134,-10969.66475477,0.00013,2]
[335022010,1723750160156,-6043.90334237,0.00024,60]
[335022011,1723750163393,-325.84092361,0.0003837,3]
[335022012,1723750163416,-162.972932,0.00039496,2]
[335022013,1723750163440,-160.405203,0.00039532,2]
[335022014,1723750163467,-160.405203,0.00039944,2]
[335022015,1723750163490,-5668.81358758,0.0004,2]
[335022016,1723750163514,-160.405203,0.00040356,2]
[335022017,1723750163539,-160.405203,0.00040768,2]
[335022018,1723750163563,-160.405203,0.0004118,2]
[335022019,1723750163587,-160.405203,0.00041592,2]
[335022144,1723750240672,-7269.19292269,0.00030717,30]
[335022146,1723750240682,-153.0,0.00045589,2]
[335022148,1723750240692,-153.0,0.00045589,2]
[335022150,1723750240701,-13.45707726,0.00045589,2]
[335022152,1723750240714,-292.54292274,0.00045589,2]
[335022153,1723750240723,-49.13707666,0.0004647,28]
[335022154,1723750240736,-174.59245629,0.0004647,28]
[335022155,1723750240746,-621.01531705,0.00046475,2]
[335022156,1723750240755,-621.01531703,0.00046544,2]
[335022157,1723750240765,-500.0,0.00046564,120]
[335022158,1723750240774,-500.0,0.00046564,120]
[335022159,1723750240784,-500.0,0.00046564,120]
[335022160,1723750240793,-607.14541429,0.00046564,120]
[335022161,1723750240803,-663.55,0.00046565,3]
[335022162,1723750240813,-1036.01,0.00046565,3]
[335022163,1723750240822,-502.87149534,0.00046565,3]
[335022184,1723750242922,-360.46850466,0.00046565,3]
[335022185,1723750242933,-1405.58838102,0.00046565,5]
[335022188,1723750243622,-7012.9056975,0.00046565,5]
[335022250,1723750247066,-40.60010344,0.00046565,3]
[335022251,1723750268085,178.49721722,0.0003,5]
[335022253,1723750273533,154.79103211,0.0004,4]
[335022254,1723750280745,150.0,0.00042352,2]
[335022255,1723750297697,508.0,0.00042352,2]
[335022256,1723750310244,154.79103211,0.00026999,2]
[335022257,1723750311579,320.08358525,0.00014519,2]
[335022258,1723750314549,155.0763182,0.00014519,2]
[335022259,1723750318996,601.50902274,0.00014519,2]
[335022262,1723750321560,154.86054764,0.00014519,2]
[335022263,1723750323110,180.67948358,0.00014519,2]
[335022264,1723750333318,754.82337053,0.00030617,2]
[335022288,1723751154152,-154.79103211,0.00013597,2]
[335022289,1723751154179,-208.10765604,0.00013599,2]
[335022290,1723751159130,-212.388884,0.00013599,2]
[335022293,1723751355111,-408.19220589,0.00013698,2]
[335022294,1723751355131,-428.55688061,0.00013971,2]
[335022295,1723751355152,-232.8292586,0.00014245,2]
[335022296,1723751355173,-201.337571,0.00014247,2]
[335022297,1723751355194,-174.59348,0.00014247,2]
[335022298,1723751355215,-154.79103211,0.0002,2]
[335022299,1723751356180,155.6631912,0.00013596,2]
[335022300,1723751360156,22.30059101,0.00013971,2]
[335022301,1723751368124,-406.2562896,0.00013971,2]
[335022303,1723751424635,154.77557542,0.00016934,2]
[335022330,1723751431875,-162.972932,0.00024078,2]
[335022332,1723751431885,-3000.0,0.00024352,2]
[335022333,1723751431895,-331.590135,0.00024469,2]
[335022335,1723751431905,-220.18796321,0.00024637,2]
[335022349,1723751438171,-250.49403964,0.00024657,2]
[335022350,1723751438350,-49.50596036,0.00024657,2]
[335022351,1723751438360,-2000.0,0.00024658,2]
[335022352,1723751438370,-308.51813681,0.00024728,2]
[335022353,1723751438383,-465.00007961,0.00025388,2]
[335022354,1723751438392,-465.00000398,0.00026657,2]
[335022355,1723751438402,-465.0000002,0.0002799,2]
[335022356,1723751438415,-178.49721722,0.0003,5]
[335022357,1723751438425,-707.21548649,0.00030608,2]
[335022358,1723751438435,-155.00357971,0.00030617,4]
[335022359,1723751438444,-285.11080816,0.00030617,3]
[335022360,1723751438454,-3352.168684,0.00030617,7]
[335022386,1723751440143,-5183.0,0.00030617,7]
[335022387,1723751440159,-2262.66500845,0.00030617,7]
[335022388,1723751440168,-4142.13499135,0.00030617,30]
[335022389,1723751440179,-2818.435977,0.00030617,30]
[335022408,1723751443549,-1674.6683634,0.00030617,30]
[335022411,1723751443567,-5702.79999999,0.00030617,30]
[335022482,1723751463696,380.61155709,0.00016934,2]
[335022483,1723751466954,218.62299037,0.00016934,2]
[335022486,1723751473869,377.66135017,0.00016934,2]
[335022488,1723751480627,154.77557542,0.00016934,2]
[335022489,1723751488766,1687.70049747,0.00016934,2]
[335022517,1723752341179,-209.07284799,0.00013051,2]
[335022518,1723752341202,-210.10628593,0.00013333,2]
[335022519,1723752341382,-156.91451497,0.00013333,2]
[335022520,1723752341404,-154.82215906,0.00013333,2]
[335022521,1723752341426,-154.79103211,0.00013333,2]
[335022522,1723752341448,-898.03401982,0.00013477,2]
[335022523,1723752341469,-309.52024362,0.00013496,2]
[335022524,1723752341491,-154.76012181,0.00013496,2]
[335022525,1723752341512,-810.88959894,0.00013497,2]
[335022526,1723752341533,-933.23052242,0.00013599,2]
[335022527,1723752341554,-2281.46155286,0.00013698,3]
[335022528,1723752341575,-201.337571,0.00014247,2]
[335022529,1723752341596,-174.59348,0.00014247,2]
[335022530,1723752341617,-174.72672334,0.00014519,2]
[335022531,1723752341637,-514.30036347,0.00016389,2]
[335022533,1723752401113,-154.76012181,0.00019865,2]
[335022534,1723752401135,-93.73135997,0.00019865,3]
[335022562,1723752551146,-154.76012181,0.00014245,2]
[335022563,1723752551167,-386.71920611,0.00014519,3]
[335022564,1723752551188,-2819.83287629,0.00019725,2]
[335022565,1723752551212,-277.46411292,0.00020004,2]
[335022566,1723752551239,-2850.000001,0.00021,2]
[335022567,1723752551261,-300.0,0.00021066,2]
[335022568,1723752551283,-2858.11547809,0.00021067,2]
[335022569,1723752551315,-1949.61696719,0.00021067,2]
[335022570,1723752563120,-1567.27554432,0.00021067,2]
[335022571,1723752563142,-3000.0,0.00021325,2]
[335022572,1723752563166,-28.42416251,0.00022047,2]
[335022609,1723752632161,-475.26024249,0.00022047,2]
[335022611,1723752632172,-195.76334134,0.00024898,2]
[335022613,1723752632183,-565.7723892,0.00024898,2]
[335022615,1723752632193,-9.91018221,0.00024899,2]
[335022617,1723752632204,-555.86220698,0.00024899,2]
[335022619,1723752632213,-565.77238919,0.00024899,2]
[335022621,1723752632223,-228.36539283,0.000249,2]
[335022680,1723752638292,-337.40699636,0.000249,2]
[335022683,1723752638307,-565.77238919,0.000249,2]
[335022685,1723752638316,-2049.89902686,0.0002499,3]
[335022765,1723752640251,-640.8810108,0.0002499,3]
[335022766,1723752640264,-6324.8980187,0.0002499,3]
[335022793,1723752643740,-27862.38506267,0.0002499,3]
[335022836,1723752646269,-154.76012181,0.00014519,2]
[335022838,1723752646278,-269.05676074,0.0002498,3]
[335022841,1723752646324,-574.61323926,0.0002498,3]
[335022843,1723752646336,-482.75646574,0.0002499,3]
[335022845,1723752646349,-29350.96072272,0.0002499,3]
[335022849,1723752646572,-48657.97126751,0.0002499,3]
[335022850,1723752646582,-500.0,0.00024997,2]
[335022851,1723752646591,-500.0,0.00024997,2]
[335022852,1723752646600,-215.40808652,0.00024997,2]
[335022853,1723752646610,-500.0,0.00024997,2]
[335022854,1723752646619,-500.0,0.00024997,2]
[335022855,1723752646627,-180.09081098,0.00024997,2]
[335022856,1723752646637,-500.0,0.00024997,2]
[335022857,1723752646646,-500.0,0.00024997,2]
[335022858,1723752646655,-500.0,0.00024997,2]
[335022859,1723752646665,-500.0,0.00024997,2]
[335022860,1723752646675,-570.02065468,0.00024997,2]
[335022861,1723752646684,-500.0,0.00024997,2]
[335022862,1723752646693,-500.0,0.00024997,2]
[335022863,1723752646703,-500.0,0.00024997,2]
[335022864,1723752646711,-500.0,0.00024997,2]
[335022865,1723752646720,-500.0,0.00024997,2]
[335022866,1723752646730,-500.0,0.00024997,2]
[335022867,1723752646739,-500.0,0.00024997,2]
[335022868,1723752646748,-500.0,0.00024997,2]
[335022869,1723752646757,-500.0,0.00024997,2]
[335022870,1723752646767,-500.0,0.00024997,2]
[335022871,1723752646776,-500.0,0.00024997,2]
[335022872,1723752646785,-500.0,0.00024997,2]
[335022873,1723752646794,-500.0,0.00024997,2]
[335022874,1723752646804,-500.0,0.00024997,2]
[335022875,1723752646813,-500.0,0.00024997,2]
[335022876,1723752646822,-500.0,0.00024997,2]
[335022877,1723752646832,-500.0,0.00024997,2]
[335022878,1723752646841,-500.0,0.00024997,2]
[335022879,1723752646850,-500.0,0.00024997,2]
[335022880,1723752646859,-500.0,0.00024997,2]
[335022881,1723752646999,-500.0,0.00024997,2]
[335022882,1723752647011,-500.0,0.00024997,2]
[335022883,1723752647022,-190.76444888,0.00024997,2]
[335022884,1723752647033,-500.0,0.00024997,2]
[335022885,1723752647043,-500.0,0.00024997,2]
[335022886,1723752647053,-500.0,0.00024997,2]
[335022887,1723752647062,-500.0,0.00024997,2]
[335022888,1723752647073,-500.0,0.00024997,2]
[335022889,1723752647082,-500.0,0.00024997,2]
[335022890,1723752647093,-500.0,0.00024997,2]
[335022891,1723752647103,-500.0,0.00024997,2]
[335022892,1723752647113,-500.0,0.00024997,2]
[335022893,1723752647122,-500.0,0.00024997,2]
[335022894,1723752647131,-500.0,0.00024997,2]
[335022895,1723752647140,-151.0,0.00024998,7]
[335022896,1723752647150,-478.488249,0.00024998,7]
[335022897,1723752647160,-478.488249,0.00024998,7]
[335022898,1723752647170,-151.0,0.00024998,7]
[335022899,1723752647179,-478.488249,0.00024998,7]
[335022900,1723752647188,-151.0,0.00024998,7]
[335022901,1723752647198,-478.488249,0.00024998,7]
[335022902,1723752647207,-151.0,0.00024998,7]
[335022903,1723752647217,-478.488249,0.00024998,7]
[335022904,1723752647226,-151.0,0.00024998,7]
[335022905,1723752647235,-478.488249,0.00024998,7]
[335022906,1723752647245,-151.0,0.00024998,7]
[335022907,1723752647260,-151.0,0.00024998,7]
[335022908,1723752647269,-478.488249,0.00024998,7]
[335022909,1723752647279,-478.488249,0.00024998,7]
[335022910,1723752647288,-478.488249,0.00024998,7]
[335022911,1723752647298,-478.488249,0.00024998,7]
[335022912,1723752647308,-162.153856,0.00024998,7]
[335022913,1723752647317,-151.0,0.00024998,7]
[335022914,1723752647328,-478.488249,0.00024998,7]
[335022915,1723752647340,-151.939087,0.00024998,7]
[335022916,1723752647348,-478.488249,0.00024998,7]
[335022917,1723752647357,-151.0,0.00024998,7]
[335022918,1723752647366,-151.0,0.00024998,7]
[335022919,1723752647376,-279.34981,0.00024998,7]
[335022920,1723752647386,-279.34981,0.00024998,7]
[335022921,1723752647395,-279.34981,0.00024998,7]
[335022922,1723752647405,-279.34981,0.00024998,7]
[335022923,1723752647414,-279.34981,0.00024998,7]
[335022924,1723752647424,-279.34981,0.00024998,7]
[335022925,1723752647434,-279.34981,0.00024998,7]
[335022926,1723752647444,-151.0,0.00024998,7]
[335022927,1723752647454,-279.34981,0.00024998,7]
[335022928,1723752647463,-151.0,0.00024998,7]
[335022929,1723752647474,-279.34981,0.00024998,7]
[335022930,1723752647483,-279.34981,0.00024998,7]
[335022931,1723752647492,-279.34981,0.00024998,7]
[335022932,1723752647502,-279.34981,0.00024998,7]
[335022933,1723752647511,-151.0,0.00024998,7]
[335022934,1723752647520,-151.0,0.00024998,7]
[335022935,1723752647530,-151.0,0.00024998,7]
[335022936,1723752647539,-151.0,0.00024998,7]
[335022937,1723752647549,-151.0,0.00024998,7]
[335022938,1723752647558,-171.749547,0.00024998,7]
[335022939,1723752647567,-151.0,0.00024998,7]
[335022940,1723752647577,-151.0,0.00024998,7]
[335022941,1723752647586,-151.0,0.00024998,7]
[335022942,1723752647596,-151.0,0.00024998,7]
[335022943,1723752647606,-151.0,0.00024998,7]
[335022944,1723752647616,-151.0,0.00024998,7]
[335022945,1723752647626,-151.0,0.00024998,7]
[335022946,1723752647635,-151.0,0.00024998,7]
[335022947,1723752647645,-151.0,0.00024998,7]
[335022948,1723752647654,-151.0,0.00024998,7]
[335022949,1723752647664,-151.0,0.00024998,7]
[335022950,1723752647674,-151.0,0.00024998,7]
[335022951,1723752647683,-151.0,0.00024999,7]
[335022952,1723752647693,-200.904939,0.00024999,7]
[335022953,1723752647703,-200.904939,0.00024999,7]
[335022954,1723752647713,-200.904939,0.00024999,7]
[335022955,1723752647722,-200.904939,0.00024999,7]
[335022956,1723752647731,-200.904939,0.00024999,7]
[335022957,1723752647740,-200.904939,0.00024999,7]
[335022958,1723752647750,-200.904939,0.00024999,7]
[335022959,1723752647759,-200.904939,0.00024999,7]
[335022960,1723752647769,-200.904939,0.00024999,7]
[335022961,1723752647779,-200.904939,0.00024999,7]
[335022962,1723752647790,-151.0,0.00024999,7]
[335022963,1723752647799,-151.0,0.00024999,7]
[335022964,1723752647809,-151.0,0.00024999,2]
[335022965,1723752647818,-151.0,0.00024999,7]
[335022966,1723752647828,-385.82381765,0.00024999,2]
[335022967,1723752647837,-237.9960135,0.00024999,2]
[335022968,1723752647846,-500.0,0.00024999,2]
[335022969,1723752647855,-500.0,0.00024999,2]
[335022970,1723752647864,-500.0,0.00024999,2]
[335022971,1723752647873,-500.0,0.00024999,2]
[335022972,1723752647883,-500.0,0.00024999,2]
[335022973,1723752647892,-500.0,0.00024999,2]
[335022974,1723752647902,-500.0,0.00024999,2]
[335022975,1723752647911,-500.0,0.00024999,2]
[335022976,1723752647921,-500.0,0.00024999,2]
[335022977,1723752647931,-500.0,0.00024999,2]
[335022978,1723752647941,-500.0,0.00024999,2]
[335022979,1723752647951,-500.0,0.00024999,2]
[335022980,1723752647962,-471.47813104,0.00024999,2]
[335022981,1723752647971,-500.0,0.00024999,2]
[335022982,1723752647982,-500.0,0.00024999,2]
[335022983,1723752647992,-500.0,0.00024999,2]
[335022984,1723752648002,-230.03469173,0.00024999,2]
[335022985,1723752648012,-500.0,0.00024999,2]
[335022986,1723752648022,-151.0,0.00024999,7]
[335022987,1723752648032,-151.0,0.00024999,7]
[335022988,1723752648045,-151.0,0.00024999,7]
[335022989,1723752648055,-151.0,0.00024999,7]
[335022990,1723752648065,-151.0,0.00024999,7]
[335022991,1723752648074,-153.00216,0.00024999,7]
[335022992,1723752648084,-151.0,0.00024999,7]
[335022993,1723752648093,-478.488249,0.00024999,7]
[335022994,1723752648103,-478.488249,0.00024999,7]
[335022995,1723752648113,-151.0,0.00024999,7]
[335022996,1723752648123,-151.0,0.00024999,7]
[335022997,1723752648132,-478.488249,0.00024999,7]
[335022998,1723752648142,-478.488249,0.00024999,7]
[335022999,1723752648152,-279.34981,0.00024999,7]
[335023000,1723752648163,-279.34981,0.00024999,7]
[335023001,1723752648173,-279.34981,0.00024999,7]
[335023002,1723752648182,-279.34981,0.00024999,7]
[335023003,1723752648192,-151.0,0.00024999,7]
[335023004,1723752648202,-151.0,0.00024999,7]
[335023005,1723752648211,-151.0,0.00024999,7]
[335023006,1723752648221,-251.440222,0.00024999,7]
[335023007,1723752648231,-180390.75344038,0.00025,60]
[335023008,1723752648240,-200.904939,0.00025,7]
[335023009,1723752648251,-200.904939,0.00025,7]
[335023010,1723752648262,-478.488249,0.00025,7]
[335023011,1723752648272,-151.0,0.00025,7]
[335023012,1723752648281,-478.488249,0.00025,7]
[335023013,1723752648295,-279.34981,0.00025,7]
[335023014,1723752648304,-279.34981,0.00025,7]
[335023015,1723752648314,-151.0,0.00025,7]
[335023016,1723752648323,-1579.41439675,0.0002567,2]
[335023017,1723752648334,-195.76334131,0.00029013,2]
[335023018,1723752648344,-5189.35144872,0.0003,30]
[335023019,1723752648355,-200.904939,0.0003,7]
[335023020,1723752648365,-200.904939,0.0003,7]
[335023021,1723752648374,-478.488249,0.0003,7]
[335023022,1723752648384,-151.0,0.0003,7]
[335023023,1723752648394,-478.488255,0.0003,7]
[335023024,1723752648404,-279.34981,0.0003,7]
[335023025,1723752648415,-279.349811,0.0003,7]
[335023026,1723752648425,-151.0,0.0003,7]
[335023027,1723752648435,-895.60748666,0.00030224,2]
[335023028,1723752648445,-28842.4378938,0.00030607,4]
[335023029,1723752648455,-22677.34915728,0.00030617,30]
[335023030,1723752648465,-154.80649189,0.00030617,4]
[335023031,1723752648474,-151.0,0.00030617,7]
[335023032,1723752648484,-151.0,0.00030617,7]
[335023033,1723752648494,-151.0,0.00030617,7]
[335023034,1723752648503,-151.0,0.00030617,7]
[335023035,1723752648513,-151.0,0.00030617,7]
[335023036,1723752648522,-194.928163,0.00030617,7]
[335023037,1723752648533,-194.928163,0.00030617,7]
[335023038,1723752648543,-151.0,0.00030617,7]
[335023039,1723752648553,-151.0,0.00030617,7]
[335023040,1723752648562,-151.0,0.00030617,7]
[335023041,1723752648572,-151.0,0.00030617,7]
[335023042,1723752648582,-151.0,0.00030617,7]
[335023043,1723752648591,-151.0,0.00030617,7]
[335023044,1723752648600,-151.0,0.00030617,7]
[335023045,1723752648610,-151.0,0.00030617,7]
[335023046,1723752648620,-151.0,0.00030617,7]
[335023047,1723752648630,-151.0,0.00030617,7]
[335023048,1723752648639,-151.0,0.00030617,7]
[335023049,1723752648649,-151.0,0.00030617,7]
[335023050,1723752648658,-151.0,0.00030617,7]
[335023051,1723752648667,-151.0,0.00030617,7]
[335023052,1723752648678,-151.0,0.00030617,7]
[335023053,1723752648687,-200.904939,0.00030617,7]
[335023054,1723752648697,-200.904939,0.00030617,7]
[335023055,1723752648706,-200.904939,0.00030617,7]
[335023056,1723752648715,-200.904939,0.00030617,7]
[335023057,1723752648725,-151.0,0.00030743,14]
[335023058,1723752648734,-503.684405,0.00033071,2]
[335023059,1723752648744,-195.76334131,0.00033127,2]
[335023060,1723752648754,-151.0,0.00035616,7]
[335023061,1723752648763,-158.271088,0.00035616,120]
[335023062,1723752648774,-194.928163,0.00037141,7]
[335023063,1723752648784,-194.928163,0.00037141,7]
[335023064,1723752648794,-211.93184,0.00037141,7]
[335023065,1723752648804,-195.76334131,0.00037242,2]
[335023066,1723752648813,-500.0,0.00038356,59]
[335023067,1723752648823,-151.0,0.00040453,14]
[335023068,1723752648832,-151.0,0.00040453,14]
[335023069,1723752648842,-151.0,0.00040453,14]
[335023070,1723752648852,-151.0,0.00040453,14]
[335023071,1723752648862,-200.904939,0.00040453,14]
[335023072,1723752648871,-200.904933,0.00040453,14]
[335023073,1723752648881,-195.76334131,0.00041356,28]